bitfinex-derivatives/quotes_ETHF0:USTF0_20240817
["timestamp","ask_amount","ask_price","bid_price","bid_amount"]
[1723935525412,0.08253492,2609.0,2608.9,2.54018]
[1723935525621,1.43703,2609.2,2609.0,1.43712]
[1723935525823,0.08253361,2609.1,2609.0,1.43712]
[1723935526715,1.51960361,2609.1,2609.0,1.43712]
[1723935527519,0.08253361,2609.1,2609.0,1.43712]
[1723935528119,0.08253252,2609.1,2609.0,1.43712]
[1723935529006,0.08253252,2609.1,2609.0,2.17622]
[1723935530721,1.51960252,2609.1,2609.0,2.17622]
[1723935533013,1.43707,2609.1,2609.0,2.17622]
[1723935533214,0.08252905,2609.1,2609.0,2.17622]
[1723935533819,1.51959905,2609.1,2609.0,2.17622]
[1723935535014,0.08252905,2609.1,2609.0,2.17622]
[1723935536024,1.51959905,2609.1,2609.0,2.17622]
[1723935537028,1.43707,2609.1,2609.0,2.17622]
[1723935537210,1.5195976,2609.1,2609.0,2.17622]
[1723935538921,1.5195976,2609.1,2609.0,0.7391]
[1723935540229,0.08251622,2609.1,2609.0,2.17623]
[1723935540726,1.51958622,2609.1,2609.0,2.17623]
[1723935540927,1.51958596,2609.1,2609.0,2.17623]
[1723935542327,0.08251596,2609.1,2609.0,2.17623]
[1723935542527,0.08251596,2609.1,2609.0,2.54893]
[1723935542528,1.51958596,2609.1,2609.0,2.54893]
[1723935544137,1.43716,2609.0,2608.8,3.2078]
[1723935544435,0.3563,2609.0,2608.8,6.09791]
[1723935544632,2.16697,2609.0,2608.8,4.6607]
[1723935544929,2.16697,2609.0,2608.8,6.09791]
[1723935545323,0.08251955,2608.9,2608.8,6.09791]
[1723935546519,0.08251955,2608.9,2608.8,4.6607]
[1723935546733,0.08251955,2608.9,2608.8,6.09794]
[1723935546927,0.08251955,2608.9,2608.8,1.4529]
[1723935547128,1.51969955,2608.9,2608.7,0.7047]
[1723935547334,1.43724,2608.8,2608.7,0.3576]
[1723935547825,1.51977474,2608.8,2608.7,0.3576]
[1723935549938,1.43729,2608.7,2608.6,1.46079859]
[1723935550133,1.89682474,2608.7,2608.6,1.46079859]
[1723935550323,1.89682474,2608.7,2608.6,9.55649891]
[1723935550828,1.89682474,2608.7,2608.6,1.46079859]
[1723935551636,1.89682474,2608.7,2608.6,1.10689859]
[1723935553232,6.83342474,2608.7,2608.6,0.00389859]
[1723935553428,2.8748,2608.5,2608.4,0.00574955]
[1723935553731,4.96190151,2608.5,2608.4,0.00574955]
[1723935553939,13.79550151,2608.5,2608.4,0.00574955]
[1723935554242,14.14600151,2608.5,2608.4,0.00574955]
[1723935554436,14.14600151,2608.5,2608.4,0.01036727]
[1723935555932,1.43762,2608.1,2608.0,1.103]
[1723935556136,1.43762,2608.1,2607.9,5.00402]
[1723935556137,1.52017812,2608.1,2607.9,5.00402]
[1723935556432,0.43743812,2608.0,2607.9,5.35682]
[1723935556838,0.43743812,2608.0,2607.9,13.45979462]
[1723935557250,0.3549,2608.0,2607.9,13.45979462]
[1723935558033,1.78673955,2608.2,2607.9,13.45979462]
[1723935558233,0.08254682,2608.1,2608.0,1.103]
[1723935559338,2.14163955,2608.2,2608.0,2.54068]
[1723935559542,2.14163955,2608.2,2608.0,1.103]
[1723935560447,1.43762,2608.1,2608.0,1.103]
[1723935563242,0.00574955,2608.2,2608.1,1.43762]
[1723935563445,0.00574955,2608.2,2608.1,2.54062]
[1723935564844,0.00574955,2608.2,2608.1,6.37502]
[1723935567554,0.00574955,2608.2,2608.1,5.27202]
[1723935567758,0.00574955,2608.2,2608.1,9.58282]
[1723935569142,4.088,2608.6,2608.1,9.58282]
[1723935569344,4.088,2608.6,2608.5,1.103]
[1723935569345,5.52535,2608.6,2608.5,1.103]
[1723935569754,5.52535,2608.6,2608.4,1.43744]
[1723935570653,5.52535,2608.6,2608.5,1.4374]
[1723935573155,1.43735,2608.6,2608.5,1.4374]
[1723935574951,1.43733,2608.7,2608.6,1.43735]
[1723935575153,1.51989968,2608.7,2608.6,1.43735]
[1723935575654,1.43736,2608.6,2608.5,1.43736]
[1723935576357,1.43733,2608.7,2608.6,1.43734]
[1723935576558,1.51990235,2608.7,2608.6,1.43734]
[1723935577762,1.10874955,2608.8,2608.7,1.43729]
[1723935577952,1.19132187,2608.8,2608.7,1.43729]
[1723935578457,1.43729,2608.7,2608.6,2.14781]
[1723935578659,2.54600955,2608.8,2608.7,1.43729]
[1723935578857,2.62857976,2608.8,2608.7,1.43729]
[1723935581856,2.62858001,2608.8,2608.7,1.43729]
[1723935582762,1.19132001,2608.8,2608.7,1.43729]
[1723935582963,0.08832001,2608.8,2608.7,1.81089]
[1723935585967,0.00574955,2608.8,2608.7,1.81089]
[1723935586164,0.08832148,2608.8,2608.7,1.81089]
[1723935586866,0.00574955,2608.8,2608.7,1.81089]
[1723935588167,0.00574955,2608.8,2608.7,2.91389]
[1723935588965,0.00574955,2608.8,2608.7,9.95529]
[1723935589174,0.00574955,2608.8,2608.7,12.39561764]
[1723935589373,1.80743,2609.2,2609.1,1.43707]
[1723935589673,1.8900023,2609.2,2609.1,1.43707]
[1723935589861,1.80743,2609.2,2609.1,1.43707]
[1723935590165,1.89000316,2609.2,2609.1,1.43707]
[1723935592572,0.45297316,2609.2,2609.1,1.43707]
[1723935592776,0.3704,2609.2,2609.1,2.54007]
[1723935592967,0.3704,2609.2,2609.1,1.79907]
[1723935593170,0.3704,2609.2,2609.1,2.17307]
[1723935593964,0.3704,2609.2,2609.1,2.53667]
[1723935595169,1.43698,2609.3,2609.2,1.43702]
[1723935595378,1.44268955,2609.4,2609.2,2.54002]
[1723935595776,1.44268955,2609.4,2609.2,1.43702]
[1723935596073,0.356,2609.3,2609.2,1.43702]
[1723935600483,0.00574955,2609.4,2609.3,2.87392]
[1723935600689,0.00298279,2609.4,2609.3,11.01752]
[1723935601373,0.00298279,2609.4,2609.3,20.30263971]
[1723935601692,0.00017595,2609.4,2609.3,20.30263971]
[1723935604191,0.00017595,2609.4,2609.3,26.95546937]
[1723935604396,0.00017595,2609.4,2609.3,21.95546937]
[1723935604793,0.00017595,2609.4,2609.3,26.95546937]
[1723935605096,0.00017595,2609.4,2609.3,21.95546937]
[1723935605492,0.00017595,2609.4,2609.3,26.95546937]
[1723935605893,0.00017595,2609.4,2609.3,28.39242937]
[1723935606092,0.00017595,2609.4,2609.3,26.95546937]
[1723935606885,0.00017595,2609.4,2609.3,28.39242937]
[1723935607584,0.00017595,2609.4,2609.3,26.95546937]
[1723935607986,0.00017595,2609.4,2609.3,21.95546937]
[1723935609302,0.00017595,2609.4,2609.3,23.39242937]
[1723935610200,0.00017595,2609.4,2609.3,19.55962937]
[1723935610501,0.00017595,2609.4,2609.3,20.18382937]
[1723935610697,0.00017595,2609.4,2609.3,23.39162937]
[1723935610897,0.00017595,2609.4,2609.3,21.95466937]
[1723935611100,0.00017595,2609.4,2609.3,23.39162937]
[1723935611903,0.00017595,2609.4,2609.3,21.95466937]
[1723935612099,0.00017595,2609.4,2609.3,23.39162937]
[1723935612400,0.00017595,2609.4,2609.3,21.95466937]
[1723935612699,0.00017595,2609.4,2609.3,23.39162937]
[1723935612899,0.00017595,2609.4,2609.3,23.70328799]
[1723935614296,0.00017595,2609.4,2609.3,21.95466937]
[1723935614997,0.00017595,2609.4,2609.3,20.18382937]
[1723935615403,0.00017595,2609.4,2609.3,23.39162937]
[1723935616301,0.00017595,2609.4,2609.3,21.95466937]
[1723935618491,0.00017595,2609.4,2609.3,20.18382937]
[1723935618806,0.00017595,2609.4,2609.3,23.39162937]
[1723935622903,0.00017595,2609.4,2609.3,24.39466701]
[1723935623296,0.00017595,2609.4,2609.3,23.39162937]
[1723935623497,0.00017595,2609.4,2609.3,24.39466701]
[1723935623700,0.00017595,2609.4,2609.3,23.39162937]
[1723935623900,0.00017595,2609.4,2609.3,24.39466701]
[1723935627011,0.00017595,2609.4,2609.3,21.18686701]
[1723935627410,0.00017595,2609.4,2609.3,24.39466701]
[1723935628510,0.00017595,2609.4,2609.3,26.31056572]
[1723935629611,0.00017595,2609.4,2609.3,26.30902005]
[1723935630115,0.00017595,2609.4,2609.3,25.30752808]
[1723935630408,0.00017595,2609.4,2609.3,24.39312189]
[1723935630601,0.00017595,2609.4,2609.3,18.02116189]
[1723935630804,0.00017595,2609.4,2609.3,13.83754966]
[1723935631511,0.00017595,2609.4,2609.3,14.83904218]
[1723935634209,0.00017595,2609.4,2609.3,16.75508317]
[1723935634608,0.00017595,2609.4,2609.3,17.25720565]
[1723935636816,0.00017595,2609.4,2609.3,17.25718801]
[1723935638612,0.00017595,2609.4,2609.3,15.75357301]
[1723935640418,0.00017595,2609.4,2609.3,17.75874401]
[1723935641415,0.00017595,2609.4,2609.3,21.59070011]
[1723935641821,0.00017595,2609.4,2609.3,17.75871381]
[1723935642025,0.00017595,2609.4,2609.3,21.59070011]
[1723935642718,0.00017595,2609.4,2609.3,19.58552911]
[1723935642918,0.00017595,2609.4,2609.3,21.59417531]
[1723935643119,0.00017595,2609.4,2609.3,19.58552911]
[1723935643720,0.00017595,2609.4,2609.3,21.5946896]
[1723935644328,0.00017595,2609.4,2609.3,19.58552911]
[1723935645122,0.00017595,2609.4,2609.3,18.48252911]
[1723935645422,3.91470157,2609.4,2609.3,15.82401601]
[1723935645626,10.35161157,2609.4,2609.3,11.51321601]
[1723935645826,1.43696,2609.3,2609.2,1.00528033]
[1723935646042,7.72462559,2609.3,2609.2,1.00528033]
[1723935646321,5.71668562,2609.3,2609.1,1.00528033]
[1723935646622,1.86604562,2609.2,2609.1,1.00528033]
[1723935646823,7.70671319,2609.2,2609.0,2.11402988]
[1723935647023,0.45402562,2609.1,2609.0,2.11402988]
[1723935647320,0.45402562,2609.1,2609.0,4.46237131]
[1723935647524,4.28682562,2609.1,2609.0,5.96980451]
[1723935648527,0.45402562,2609.1,2609.0,5.96980451]
[1723935648827,4.28682562,2609.1,2609.0,5.96980451]
[1723935649323,4.2868185,2609.1,2609.0,5.96980451]
[1723935649520,4.2043,2609.1,2609.0,5.96980451]
[1723935650216,4.2043,2609.1,2609.0,5.96958485]
[1723935650425,0.3715,2609.1,2609.0,5.96958485]
[1723935650617,4.2043,2609.1,2609.0,5.96958485]
[1723935650821,0.3715,2609.1,2609.0,5.96958485]
[1723935652627,0.3715,2609.1,2609.0,5.46595751]
[1723935652830,0.3715,2609.1,2609.0,4.46215165]
[1723935653223,0.3715,2609.1,2609.0,5.96958485]
[1723935653429,0.3715,2609.1,2609.0,4.46215165]
[1723935654330,0.3715,2609.1,2609.0,5.96958485]
[1723935654634,0.3715,2609.1,2609.0,5.46576646]
[1723935654820,0.3715,2609.1,2609.0,5.4657918]
[1723935655728,4.2043,2609.1,2609.0,3.54949436]
[1723935656725,4.2043,2609.1,2609.0,5.46578884]
[1723935657531,4.2043,2609.1,2609.0,3.54949436]
[1723935657828,4.2043,2609.1,2609.0,5.46577346]
[1723935658136,4.2043,2609.1,2609.0,5.46575761]
[1723935658327,4.2043,2609.1,2609.0,3.54949436]
[1723935660630,0.3715,2609.1,2609.0,3.54949436]
[1723935660825,4.2043,2609.1,2609.0,3.54949436]
[1723935662645,0.3715,2609.1,2609.0,3.54949436]
[1723935664630,0.3715,2609.1,2609.0,2.54587955]
[1723935665329,0.3715,2609.1,2609.0,3.54949436]
[1723935666735,0.3715,2609.1,2609.0,2.54587955]
[1723935670525,0.3644,2609.3,2609.0,3.54949436]
[1723935670739,0.00017595,2609.4,2609.3,1.43696]
[1723935670936,0.00017595,2609.4,2609.3,3.54357481]
[1723935671144,0.00017595,2609.4,2609.3,6.52168829]
[1723935671639,0.00017595,2609.4,2609.3,5.51807348]
[1723935671944,0.00017595,2609.4,2609.3,7.02551139]
[1723935672244,0.00017595,2609.4,2609.3,20.34696423]
[1723935672631,0.70038697,2609.8,2609.7,1.43674]
[1723935672932,0.70038697,2609.8,2609.7,2.53974]
[1723935673338,0.35588697,2609.8,2609.7,3.60184]
[1723935676431,0.35588697,2609.8,2609.7,3.25214]
[1723935676634,0.35588697,2609.8,2609.7,2.89734]
[1723935679939,0.35588697,2609.8,2609.7,1.43674]
[1723935680140,0.43838162,2609.8,2609.7,1.43674]
[1723935680840,0.35588697,2609.8,2609.7,1.43674]
[1723935688155,0.35588697,2609.8,2609.7,2.53974]
[1723935690939,4.27038,2609.8,2609.6,1.43677]
[1723935691141,1.4368,2609.6,2609.5,2.53982]
[1723935691441,2.15078,2609.7,2609.5,10.6855244]
[1723935691639,2.15078,2609.7,2609.5,2.53982]
[1723935691854,5.649,2609.7,2609.3,1.103]
[1723935692056,5.649,2609.7,2609.3,2.53991]
[1723935692057,1.43685,2609.5,2609.3,2.53991]
[1723935692445,0.378,2609.4,2609.3,2.53991]
[1723935694457,0.378,2609.4,2609.3,3.54301506]
[1723935696843,0.378,2609.4,2609.3,2.53991]
[1723935697049,1.43696,2609.3,2609.2,2.10610506]
[1723935697249,1.43696,2609.3,2609.1,1.103]
[1723935697250,5.98281,2609.3,2609.1,1.103]
[1723935697561,4.5458,2609.3,2609.1,1.103]
[1723935697761,1.43702,2609.2,2609.1,1.103]
[1723935698258,3.8328,2609.2,2609.1,1.103]
[1723935699059,5.26982,2609.2,2609.1,1.103]
[1723935699762,3.8328,2609.2,2609.1,1.103]
[1723935699962,3.8328,2609.2,2609.1,2.54007]
[1723935700354,3.8328,2609.2,2609.1,1.103]
[1723935702058,3.8328,2609.2,2609.1,2.54007]
[1723935705357,2.15,2609.3,2609.1,2.54007]
[1723935705864,1.43702,2609.2,2609.1,1.103]
[1723935706262,5.26982,2609.2,2609.1,1.103]
[1723935707261,5.26982,2609.2,2609.0,1.44286955]
[1723935707465,0.3677,2609.1,2609.0,2.54586955]
[1723935712473,1.80477,2609.1,2609.0,0.00574955]
[1723935712666,1.80477,2609.1,2609.0,1.10874955]
[1723935714465,0.3677,2609.1,2609.0,2.54587955]
[1723935714768,1.80477,2609.1,2609.0,1.10874955]
[1723935716571,1.80477,2609.1,2609.0,2.54587955]
[1723935717075,1.80477,2609.1,2609.0,1.10874955]
[1723935717671,1.8872087,2609.1,2609.0,1.10874955]
[1723935717862,0.4501387,2609.1,2609.0,2.54587955]
[1723935718064,0.3677,2609.1,2609.0,2.54587955]
[1723935719077,1.43705,2609.2,2609.1,1.43707]
[1723935719264,1.51948947,2609.2,2609.1,1.43707]
[1723935719469,1.51948945,2609.2,2609.1,1.43707]
[1723935720677,5.35228945,2609.2,2609.1,1.43707]
[1723935721078,3.91523945,2609.2,2609.1,1.43707]
[1723935721271,0.08243945,2609.2,2609.1,1.43707]
[1723935721873,3.91523945,2609.2,2609.1,1.43707]
[1723935722068,5.35225945,2609.2,2609.1,1.43707]
[1723935724284,3.91523945,2609.2,2609.0,1.10874955]
[1723935724474,2.62251732,2609.1,2609.0,0.00574955]
[1723935724872,6.45532296,2609.1,2609.0,0.00574955]
[1723935725375,6.37287,2609.1,2609.0,0.00574955]
[1723935725576,6.45532298,2609.1,2609.0,0.00574955]
[1723935725981,5.01825298,2609.1,2609.0,1.44287955]
[1723935726986,5.01825481,2609.1,2609.0,1.44287955]
[1723935727688,6.45532481,2609.1,2609.0,0.00574955]
[1723935728490,6.45532481,2609.1,2609.0,1.44287955]
[1723935729589,5.01825481,2609.1,2609.0,1.44287955]
[1723935729781,0.08245481,2609.1,2609.0,2.54587955]
[1723935730098,1.43705,2609.2,2609.0,2.54587955]
[1723935730591,0.08249912,2609.1,2609.0,2.54587955]
[1723935734177,1.43705,2609.2,2609.1,1.43707]
[1723935734380,1.51954449,2609.2,2609.1,1.43707]
[1723935740097,3.52741206,2609.2,2609.1,1.43707]
[1723935740485,1.43707,2609.1,2609.0,1.44283955]
[1723935740688,1.51956449,2609.1,2609.0,1.44283955]
[1723935740882,5.35236449,2609.1,2609.0,1.44283955]
[1723935741086,5.69486449,2609.1,2609.0,1.44283955]
[1723935741399,7.70273206,2609.1,2609.0,1.44283955]
[1723935742199,4.25779449,2609.1,2609.0,1.44283955]
[1723935742392,4.25779449,2609.1,2609.0,2.44594461]
[1723935742591,0.42499449,2609.1,2609.0,2.44594461]
[1723935742798,6.26566206,2609.1,2609.0,2.44594461]
[1723935742996,6.26564004,2609.1,2609.0,2.44594461]
[1723935743502,6.26564001,2609.1,2609.0,2.44594461]
[1723935744399,6.26563996,2609.1,2609.0,2.44594461]
[1723935747098,2.43283996,2609.1,2609.0,2.44594461]
[1723935747303,6.26563926,2609.1,2609.0,2.44594461]
[1723935747987,6.26563926,2609.1,2609.0,4.36241981]
[1723935748191,6.26563926,2609.1,2609.0,4.3624201]
[1723935748401,2.43283926,2609.1,2609.0,2.44594461]
[1723935749400,7.70270926,2609.1,2609.0,2.44594461]
[1723935749595,3.86990926,2609.1,2609.0,2.44594461]
[1723935750399,7.70270926,2609.1,2609.0,2.44594461]
[1723935750598,6.26563926,2609.1,2609.0,2.44594461]
[1723935751494,2.35036757,2609.1,2609.0,4.36243506]
[1723935751694,2.43284127,2609.1,2609.0,4.36243506]
[1723935752803,2.43284127,2609.1,2609.0,2.44594461]
[1723935754404,3.86991127,2609.1,2609.0,2.44594461]
[1723935754600,7.70271127,2609.1,2609.0,2.44594461]
[1723935755505,7.62023757,2609.1,2609.0,2.44594461]
[1723935755693,7.70271063,2609.1,2609.0,1.00885461]
[1723935755896,13.45058063,2609.1,2609.0,1.00885461]
[1723935756098,11.44271306,2609.1,2609.0,0.00574955]
[1723935757509,13.9503588,2609.1,2609.0,0.00574955]
[1723935758106,10.7425588,2609.1,2609.0,0.00574955]
[1723935759305,9.3054888,2609.1,2609.0,0.00574955]
[1723935763811,9.22301574,2609.1,2609.0,0.00574955]
[1723935763997,9.30553453,2609.1,2609.0,0.00574955]
[1723935764505,5.47273453,2609.1,2609.0,0.00574955]
[1723935768117,5.47273128,2609.1,2609.0,0.00574955]
[1723935768513,5.39021574,2609.1,2609.0,0.00574955]
[1723935768703,5.4727313,2609.1,2609.0,0.00574955]
[1723935771020,5.4727281,2609.1,2609.0,0.00574955]
[1723935771719,2.96508236,2609.1,2609.0,0.00574955]
[1723935771918,5.4727281,2609.1,2609.0,0.00574955]
[1723935773807,6.9097981,2609.1,2609.0,0.00574955]
[1723935774817,4.40215236,2609.1,2609.0,0.00574955]
[1723935776121,2.96508236,2609.1,2609.0,0.00574955]
[1723935776323,2.88257,2609.1,2609.0,0.00574955]
[1723935776623,2.96508129,2609.1,2609.0,0.00574955]
[1723935777013,2.08858372,2609.1,2609.0,1.44287955]
[1723935779314,2.08858372,2609.1,2609.0,3.98300955]
[1723935779628,0.08251129,2609.1,2609.0,14.37711626]
[1723935779817,0.08251129,2609.1,2609.0,20.21937595]
[1723935780120,0.08251129,2609.1,2609.0,16.38691402]
[1723935780425,5.21387243,2609.5,2609.4,1.43691]
[1723935780626,2.0886188,2609.5,2609.4,4.64471]
[1723935780926,0.08254637,2609.5,2609.4,11.89979904]
[1723935781927,0.00448697,2609.8,2609.7,1.43674]
[1723935782113,0.08703021,2609.8,2609.7,2.53974]
[1723935782313,0.08703021,2609.8,2609.7,5.98164]
[1723935782619,0.08703021,2609.8,2609.7,6.32774]
[1723935784924,0.00448697,2609.8,2609.7,6.32774]
[1723935785223,1.19002745,2609.8,2609.7,2.49574]
[1723935788527,1.10748697,2609.8,2609.7,2.49574]
[1723935789919,1.19002717,2609.8,2609.7,2.49574]
[1723935790430,1.10748697,2609.8,2609.7,2.49574]
[1723935792424,2.54417697,2609.8,2609.7,2.49574]
[1723935793528,1.10748697,2609.8,2609.7,2.49574]
[1723935797031,2.54417697,2609.8,2609.7,2.49574]
[1723935799243,2.54417697,2609.8,2609.7,1.059]
[1723935799435,2.54417697,2609.8,2609.7,0.7129]
[1723935799734,1.43679,2609.7,2609.5,1.43681]
[1723935799929,1.103,2609.6,2609.5,1.43681]
[1723935800131,1.4696,2609.6,2609.5,1.43681]
[1723935802429,1.44121697,2609.8,2609.6,1.4368]
[1723935802626,1.44121697,2609.8,2609.7,0.3661]
[1723935802826,1.44121697,2609.8,2609.7,0.7314]
[1723935804337,0.00448697,2609.8,2609.7,2.16814]
[1723935806041,0.00448697,2609.8,2609.7,18.16086486]
[1723935806939,0.00448697,2609.8,2609.7,16.72412486]
[1723935810837,0.00448697,2609.8,2609.7,19.93192486]
[1723935812542,0.00448697,2609.8,2609.7,16.72412486]
[1723935812747,0.00448697,2609.8,2609.7,17.39218486]
[1723935812953,0.00448697,2609.8,2609.7,18.49518486]
[1723935816955,0.00448697,2609.8,2609.7,15.28738486]
[1723935817150,0.00448697,2609.8,2609.7,11.45538486]
[1723935817459,0.00448697,2609.8,2609.7,15.28738486]
[1723935817753,0.00448697,2609.8,2609.7,11.45538486]
[1723935817946,0.00448697,2609.8,2609.7,14.66318486]
[1723935818147,0.00448697,2609.8,2609.7,11.45538486]
[1723935818346,0.00448697,2609.8,2609.7,15.28738486]
[1723935818543,0.00448697,2609.8,2609.7,11.45538486]
[1723935818748,0.00448697,2609.8,2609.7,11.09008486]
[1723935821352,0.00448697,2609.8,2609.7,10.72398486]
[1723935823450,0.00448697,2609.8,2609.7,11.72803153]
[1723935824162,0.00448697,2609.8,2609.7,10.72398486]
[1723935824566,0.00448697,2609.8,2609.7,11.72803153]
[1723935825461,0.00448697,2609.8,2609.7,12.63988504]
[1723935825760,0.00448697,2609.8,2609.7,13.64389187]
[1723935826859,0.00448697,2609.8,2609.7,12.63988504]
[1723935828367,0.00448697,2609.8,2609.7,13.64390775]
[1723935828564,0.00448697,2609.8,2609.7,12.63988504]
[1723935828966,0.00448697,2609.8,2609.7,12.63987504]
[1723935830652,5.02192398,2609.8,2609.6,1.00400173]
[1723935830953,5.02192398,2609.8,2609.3,1.00400173]
[1723935830954,8.22523701,2609.7,2609.3,1.00400173]
[1723935831161,1.103,2609.4,2609.1,1.00400173]
[1723935831360,0.45633701,2609.3,2609.1,2.44104173]
[1723935831562,0.08243701,2609.2,2609.1,10.57885532]
[1723935832256,0.08243701,2609.2,2609.1,9.57485359]
[1723935832567,0.3739,2609.3,2609.1,10.57885532]
[1723935833171,0.3739,2609.3,2609.1,9.57485359]
[1723935833671,0.3739,2609.3,2609.1,10.57885532]
[1723935833860,0.3739,2609.3,2609.1,9.57485359]
[1723935834576,0.3739,2609.3,2609.1,10.57885532]
[1723935834871,0.3739,2609.3,2609.2,1.103]
[1723935835055,0.45634797,2609.3,2609.2,1.103]
[1723935835469,0.45634808,2609.3,2609.2,1.103]
[1723935836456,0.3739,2609.3,2609.2,1.103]
[1723935837666,0.3739,2609.3,2609.2,2.54002]
[1723935837860,4.4639,2609.7,2609.5,1.43685]
[1723935838059,0.08244874,2609.6,2609.5,1.43685]
[1723935838263,4.8124,2609.7,2609.5,1.43685]
[1723935838464,0.08244992,2609.6,2609.5,1.79365]
[1723935838767,4.8124,2609.7,2609.6,1.4368]
[1723935838967,4.8948499,2609.7,2609.6,1.4368]
[1723935839171,8.7268499,2609.7,2609.6,1.4368]
[1723935839365,8.72684967,2609.7,2609.6,1.4368]
[1723935839977,8.6444,2609.7,2609.6,1.4368]
[1723935840271,4.51894953,2609.7,2609.6,1.4368]
[1723935840470,8.35094953,2609.7,2609.6,1.4368]
[1723935840665,9.45394953,2609.7,2609.6,1.4368]
[1723935840860,5.2835,2609.7,2609.6,1.4368]
[1723935841162,1.53394471,2609.7,2609.6,1.4368]
[1723935841368,5.36594471,2609.7,2609.6,1.4368]
[1723935841568,1.53394486,2609.7,2609.6,1.4368]
[1723935841772,5.36594486,2609.7,2609.6,1.4368]
[1723935842579,6.80268486,2609.7,2609.5,1.79361]
[1723935842768,2.88824,2609.7,2609.5,1.79361]
[1723935843464,1.7925,2609.6,2609.4,2.53988]
[1723935843770,0.3442,2609.5,2609.4,1.43688]
[1723935844365,0.3442,2609.5,2609.3,6.47052]
[1723935844572,0.3601,2609.4,2609.3,6.47052]
[1723935847385,0.3601,2609.4,2609.3,3.26272]
[1723935847677,0.3601,2609.4,2609.3,6.47052]
[1723935848963,0.3601,2609.4,2609.3,1.8258]
[1723935852572,0.3601,2609.4,2609.2,0.3743]
[1723935852885,1.79702,2609.4,2609.2,1.8459]
[1723935856075,0.3601,2609.4,2609.2,3.28291]
[1723935857486,1.79701,2609.4,2609.2,1.8459]
[1723935857683,1.79701,2609.4,2609.2,3.28291]
[1723935858381,0.3601,2609.4,2609.2,3.28291]
[1723935860481,1.79701,2609.4,2609.2,3.28291]
[1723935861788,0.3601,2609.4,2609.2,3.28291]
[1723935862784,1.79702,2609.4,2609.2,3.28291]
[1723935863984,0.3601,2609.4,2609.2,3.28291]
[1723935866778,1.79702,2609.4,2609.2,1.8459]
[1723935866985,1.79702,2609.4,2609.2,3.28291]
[1723935867390,1.79702,2609.4,2609.2,1.8459]
[1723935867890,1.79702,2609.4,2609.2,3.28291]
[1723935869289,0.3601,2609.4,2609.2,3.28291]
[1723935870489,0.3601,2609.4,2609.2,4.28691173]
[1723935870887,0.3601,2609.4,2609.2,3.28291]
[1723935871292,0.08242743,2609.3,2609.2,4.28691173]
[1723935871590,0.08242743,2609.3,2609.2,2.84990173]
[1723935871779,0.08242743,2609.3,2609.2,1.8459]
[1723935872378,0.08242743,2609.3,2609.2,3.28292]
[1723935872581,0.08242743,2609.3,2609.2,4.28692173]
[1723935874583,2.35294642,2609.6,2609.4,1.43685]
[1723935874885,2.35294642,2609.6,2609.5,0.7406]
[1723935875288,6.26740628,2609.6,2609.5,0.7406]
[1723935875589,6.26740628,2609.6,2609.5,2.17745]
[1723935876400,4.26305986,2609.6,2609.5,2.17745]
[1723935876897,0.43105986,2609.6,2609.5,2.17745]
[1723935877089,0.43105986,2609.6,2609.5,1.43685]
[1723935877288,2.9387056,2609.6,2609.5,1.43685]
[1723935878390,0.43105986,2609.6,2609.5,1.43685]
[1723935878591,2.9387056,2609.6,2609.5,1.43685]
[1723935879596,4.3755056,2609.6,2609.5,1.43685]
[1723935881502,2.9387056,2609.6,2609.5,1.43685]
[1723935882092,0.43105986,2609.6,2609.5,1.43685]
[1723935882297,2.9387056,2609.6,2609.5,1.43685]
[1723935882496,0.43105986,2609.6,2609.5,1.43685]
[1723935885900,2.43753746,2609.6,2609.5,1.43685]
[1723935886097,2.43753655,2609.6,2609.5,2.44128503]
[1723935887197,2.35507669,2609.6,2609.5,1.43685]
[1723935887397,2.43753027,2609.6,2609.5,2.44128503]
[1723935887697,0.43105358,2609.6,2609.5,2.44128503]
[1723935887902,0.43105358,2609.6,2609.5,1.43685]
[1723935888199,0.43105358,2609.6,2609.5,2.44128503]
[1723935888404,0.08245358,2609.6,2609.5,2.44128503]
[1723935888701,0.08245358,2609.6,2609.5,9.10051142]
[1723935888889,0.08245358,2609.6,2609.5,14.94210352]
[1723935889493,0.08245358,2609.6,2609.5,11.11030918]
[1723935889893,0.08245358,2609.6,2609.5,9.67345918]
[1723935890898,0.00448697,2609.8,2609.7,1.43674]
[1723935891102,0.0869359,2609.8,2609.7,5.46053819]
[1723935891304,0.0869359,2609.8,2609.7,7.37652677]
[1723935891906,0.0869359,2609.8,2609.7,9.29242111]
[1723935892304,0.0869359,2609.8,2609.7,7.37652677]
[1723935893202,0.00448697,2609.8,2609.7,7.37652677]
[1723935893398,0.08694052,2609.8,2609.7,7.37652677]
[1723935895005,0.00448697,2609.8,2609.7,9.29236821]
[1723935895203,0.08693791,2609.8,2609.7,7.37652677]
[1723935895400,0.08693791,2609.8,2609.7,3.54452677]
[1723935896899,0.08693791,2609.8,2609.7,9.29233842]
[1723935897804,0.00448697,2609.8,2609.7,9.29233842]
[1723935898308,0.00448697,2609.8,2609.7,7.37652677]
[1723935899208,0.00448697,2609.8,2609.7,10.58432677]
[1723935899600,0.00448697,2609.8,2609.7,7.37652677]
[1723935899808,0.00448697,2609.8,2609.7,10.58432677]
[1723935900222,0.00448697,2609.8,2609.7,12.02106677]
[1723935900507,1.10874955,2610.0,2609.9,2.87326]
[1723935900508,0.00574955,2610.0,2609.9,2.87326]
[1723935900710,0.00574955,2610.0,2609.9,7.3284515]
[1723935900897,0.00574955,2610.0,2609.9,30.4778432]
[1723935900898,0.00022619,2610.0,2609.9,30.4778432]
[1723935901400,0.00022619,2610.0,2609.9,27.96463251]
[1723935901709,0.00405234,2610.0,2609.9,24.13838453]
[1723935901896,0.00405234,2610.0,2609.9,27.02469522]
[1723935902102,0.00405234,2610.0,2609.9,19.51148453]
[1723935902304,0.00405234,2610.0,2609.9,21.51575353]
[1723935902496,0.00405234,2610.0,2609.9,19.51148453]
[1723935903302,0.00405234,2610.0,2609.9,21.51573191]
[1723935903703,0.00405234,2610.0,2609.9,20.07890596]
[1723935904202,0.00405234,2610.0,2609.9,18.38612424]
[1723935905106,0.00405234,2610.0,2609.9,19.88844897]
[1723935906616,0.00405234,2610.0,2609.9,18.38612424]
[1723935907010,0.00405234,2610.0,2609.9,19.88795585]
[1723935908204,0.00405234,2610.0,2609.9,19.88798239]
[1723935911212,0.00405234,2610.0,2609.9,19.38657416]
[1723935911519,0.00405234,2610.0,2609.9,17.47118207]
[1723935911712,0.00405234,2610.0,2609.9,19.3866225]